bitfinex-derivatives/quotes_ETHF0:USTF0_20251009
["timestamp","ask_amount","ask_price","bid_price","bid_amount"]
[1760003107523,0.577,4333.0,4332.9,40.8230795]
[1760003107718,0.1681,4333.5,4333.3,0.4153]
[1760003108025,0.1681,4335.0,4333.4,6.26923]
[1760003108226,0.1681,4335.0,4333.5,1.26921]
[1760003108528,0.4089,4334.9,4334.3,0.4152]
[1760003108730,0.577,4334.5,4334.4,0.231]
[1760003109433,0.4089,4334.9,4334.7,0.41516]
[1760003109629,0.0017396,4335.0,4334.8,0.64615]
[1760003109929,0.4106396,4335.0,4334.8,0.64615]
[1760003110434,0.0017396,4335.0,4334.8,0.64615]
[1760003110623,0.4089,4334.9,4334.8,0.64615]
[1760003111019,0.0017396,4335.0,4334.8,0.64615]
[1760003111224,0.1698396,4335.0,4334.8,0.64615]
[1760003111422,0.4089,4334.9,4334.8,0.64615]
[1760003111824,0.0017396,4335.0,4334.8,0.64615]
[1760003112929,0.4089,4336.3,4335.9,0.41505]
[1760003113234,0.41501,4336.4,4336.0,40.8]
[1760003113434,0.1681,4336.5,4336.0,40.8]
[1760003113628,0.4089,4336.4,4336.0,41.21503]
[1760003113835,0.4089,4336.3,4336.2,0.41501]
[1760003114231,0.00207081,4336.4,4336.2,0.41501]
[1760003114430,0.4089,4336.3,4336.2,0.41501]
[1760003114832,0.00207081,4336.4,4336.2,0.41501]
[1760003115031,0.00207081,4336.4,4336.3,40.8]
[1760003115737,0.41097081,4336.4,4336.3,40.8]
[1760003116834,0.41097081,4336.4,4336.3,41.031]
[1760003118538,0.00207081,4336.4,4336.3,41.031]
[1760003119432,0.577,4337.5,4337.4,0.41491]
[1760003120043,0.1681,4337.5,4337.4,41.21491]
[1760003120438,0.00164256,4337.5,4337.4,41.21761854]
[1760003122639,0.00164256,4337.5,4337.4,40.80270854]
[1760003122939,0.58305,4337.0,4336.6,0.41498]
[1760003123146,0.58305,4337.0,4336.7,0.64597]
[1760003123346,0.4089,4336.9,4336.8,0.231]
[1760003123944,0.4089,4336.9,4336.8,41.03292693]
[1760003124342,0.57864256,4337.5,4336.9,0.41496]
[1760003124647,0.4089,4337.4,4337.3,0.41492]
[1760003124946,0.4089,4337.4,4337.2,0.231]
[1760003125241,0.82386,4336.9,4336.8,40.80192693]
[1760003125640,1.39389812,4336.9,4336.8,0.00192693]
[1760003125835,0.4089,4336.9,4336.8,0.00192693]
[1760003126245,0.97904452,4336.9,4336.8,0.00192693]
[1760003128247,5.97904452,4336.9,4336.8,0.00192693]
[1760003128641,6.53764452,4336.9,4336.8,0.00192693]
[1760003131151,1.25934452,4336.9,4336.8,0.41688693]
[1760003131452,1.25934452,4336.9,4336.8,0.00192693]
[1760003131649,1.53764452,4336.9,4336.8,0.23292693]
[1760003132351,1.53764452,4336.9,4336.8,0.64788693]
[1760003132547,1.95260452,4336.9,4336.8,0.00192693]
[1760003133843,9.97707692,4336.9,4336.8,0.00192693]
[1760003134050,0.708,4335.7,4335.6,40.8]
[1760003134944,0.708,4335.7,4335.6,40.80238482]
[1760003136857,0.708,4335.7,4335.6,41.03338482]
[1760003138155,0.2904,4334.7,4334.6,0.41517]
[1760003138346,0.708,4334.7,4334.6,0.41517]
[1760003138548,0.708,4334.7,4334.6,41.44617]
[1760003138957,0.708,4334.7,4334.6,40.8]
[1760003139148,1.12317,4334.7,4334.6,40.80271519]
[1760003139353,6.95554166,4334.7,4334.6,0.00271519]
[1760003140159,0.708,4334.7,4334.6,0.00271519]
[1760003140455,0.9863,4334.7,4334.6,0.23371519]
[1760003141159,0.9863,4334.7,4334.6,0.00271519]
[1760003142651,0.4176,4334.7,4334.6,0.00271519]
[1760003143865,1.03746,4336.7,4335.6,0.41508]
[1760003144160,0.4224,4335.8,4335.7,0.231]
[1760003144361,0.4224,4336.2,4336.0,0.41503]
[1760003144569,0.1676,4337.0,4336.1,0.231]
[1760003144865,0.4224,4336.4,4336.1,0.64603]
[1760003145057,0.4224,4336.3,4336.1,0.64603]
[1760003145252,0.5826,4336.5,4336.1,0.64603]
[1760003145559,0.1676,4336.5,4336.1,0.231]
[1760003145766,0.4224,4336.2,4336.1,0.231]
[1760003146360,0.4224,4335.9,4335.7,40.8]
[1760003146665,0.4224,4335.8,4335.7,40.8]
[1760003150162,0.4224,4335.8,4335.7,41.031]
[1760003150961,0.4224,4335.8,4335.7,40.8]
[1760003151170,0.4224,4335.2,4334.8,0.41515]
[1760003151460,0.1704,4335.0,4334.9,0.64614]
[1760003151663,0.5928,4335.0,4334.9,41.44614]
[1760003151859,0.5928,4335.5,4335.4,0.4151]
[1760003152062,0.5928,4335.5,4335.4,0.6461]
[1760003152256,0.8666,4335.5,4335.4,0.6461]
[1760003152656,0.5928,4335.5,4335.4,0.6461]
[1760003152962,0.58545,4336.0,4335.7,0.41506]
[1760003153167,0.4224,4335.8,4335.7,0.41506]
[1760003154265,0.4224,4335.8,4335.6,0.231]
[1760003154571,0.4224,4335.7,4335.6,0.231]
[1760003154862,0.6962,4335.7,4335.6,0.64608]
[1760003155257,0.4224,4335.7,4335.6,0.64608]
[1760003155964,0.5928,4336.0,4335.8,0.41506]
[1760003156170,0.5928,4336.0,4335.9,0.231]
[1760003156766,0.1704,4337.0,4335.9,41.031]
[1760003156963,0.1704,4337.0,4336.5,1.64887455]
[1760003157162,0.1704,4336.5,4336.4,1.64887455]
[1760003157372,0.5928,4336.5,4336.4,1.87987455]
[1760003157960,0.4224,4336.9,4336.5,1.03749]
[1760003158265,0.1704,4337.0,4336.5,2.68636455]
[1760003158568,0.6005,4337.0,4336.8,0.41496]
[1760003158874,0.6005,4337.0,4336.9,0.231]
[1760003159165,0.4301,4336.9,4336.8,0.41496]
[1760003159372,0.1704,4337.0,4336.8,0.64596]
[1760003159571,0.4301,4337.4,4337.3,0.41491]
[1760003160064,0.17204256,4337.5,4337.1,0.231]
[1760003160266,0.5901,4337.0,4336.9,40.8]
[1760003160471,0.5901,4337.0,4336.9,41.031]
[1760003162372,0.00164256,4337.5,4337.4,0.41491]
[1760003162573,0.16164256,4337.5,4337.4,0.231]
[1760003162764,0.44154256,4337.5,4337.4,0.231]
[1760003162970,0.44154256,4337.5,4337.3,0.41492]
[1760003163171,0.87164256,4337.5,4337.4,0.231]
[1760003163474,0.59174256,4337.5,4337.4,0.231]
[1760003163873,0.59174256,4337.5,4337.4,0.64591]
[1760003164875,0.00164256,4337.5,4337.4,0.64591]
[1760003165278,0.59174256,4337.5,4337.4,0.64591]
[1760003166479,0.41492,4337.4,4336.9,42.44887455]
[1760003166782,0.4301,4336.4,4336.3,0.41501]
[1760003166981,0.4301,4336.4,4336.3,0.64601]
[1760003167475,0.4301,4336.4,4336.3,40.8]
[1760003167682,0.71,4335.9,4335.8,1.84491881]
[1760003167975,0.16,4335.5,4335.4,1.64887455]
[1760003168177,0.5901,4335.5,4335.4,41.031]
[1760003169073,0.4301,4335.9,4335.8,0.41505]
[1760003169374,0.415,4336.5,4336.3,0.3928]
[1760003169770,1.03735,4337.1,4336.3,0.80781]
[1760003169972,0.16164256,4337.5,4336.5,0.1164]
[1760003170176,0.41493,4337.2,4336.9,0.3928]
[1760003170374,0.00164256,4337.5,4337.0,0.5092]
[1760003170581,0.00164256,4337.5,4337.2,0.41492]
[1760003170880,0.00164256,4337.5,4337.3,0.64591]
[1760003171076,0.00164256,4337.5,4337.4,0.6238]
[1760003171275,0.43174256,4337.5,4337.4,0.6238]
[1760003171672,0.43174256,4337.5,4337.4,41.4238]
[1760003172072,0.00164256,4337.5,4337.4,41.4238]
[1760003172677,0.43174256,4337.5,4337.4,40.8]
[1760003172877,0.00164256,4337.5,4337.4,41.1928]
[1760003173180,0.4301,4338.8,4338.2,0.3928]
[1760003173379,0.16,4339.5,4338.7,0.41478]
[1760003173575,0.4301,4339.4,4338.7,0.41478]
[1760003173775,3.42154781,4339.4,4338.7,0.41478]
[1760003173978,0.43215121,4339.4,4338.7,0.41665964]
[1760003174173,0.00205121,4339.4,4338.9,0.3928]
[1760003174486,0.41677121,4339.4,4338.8,0.64577]
[1760003174682,0.00205121,4339.4,4338.9,0.41476]
[1760003174984,0.84687121,4339.4,4339.1,0.3928]
[1760003175282,0.41474,4339.2,4338.8,0.231]
[1760003175479,0.41474,4339.2,4338.9,0.3928]
[1760003175782,0.84687121,4339.4,4338.9,0.80756]
[1760003175984,1.03695,4338.8,4338.3,1.65007748]
[1760003176171,0.4301,4336.8,4336.0,2.5599]
[1760003176379,0.4301,4336.8,4336.0,2.9546]
[1760003176579,0.41498,4336.7,4336.1,41.21502]
[1760003176978,0.41498,4336.7,4336.1,40.80282052]
[1760003177178,0.4301,4336.8,4336.2,0.3947]
[1760003177179,0.415,4336.5,4336.2,0.3947]
[1760003177380,0.4301,4336.8,4336.2,0.3947]
[1760003177381,0.41501,4336.4,4336.2,0.3947]
[1760003177583,0.41501,4336.4,4336.3,0.231]
[1760003179282,0.84511,4336.4,4336.3,0.231]
[1760003179688,0.41501,4336.4,4336.3,0.6257]
[1760003179887,0.84509,4336.6,4336.3,0.231]
[1760003180378,0.84509,4336.6,4336.4,0.3899]
[1760003180578,0.16,4337.0,4336.4,0.3899]
[1760003180784,0.41497,4336.8,4336.4,0.3899]
[1760003181088,0.41497,4336.8,4336.5,0.3899]
[1760003181290,0.41499,4336.6,4336.4,0.3899]
[1760003181583,0.4093,4337.1,4336.1,40.80282052]
[1760003181584,0.82432,4336.2,4336.1,40.80282052]
[1760003181784,0.82635554,4336.2,4336.1,40.80282052]
[1760003184690,0.82635554,4336.2,4336.1,41.19272052]
[1760003184691,0.00203554,4336.2,4336.1,41.19272052]
[1760003184890,0.41133554,4336.2,4336.1,40.80282052]
[1760003185290,0.41133554,4336.2,4336.1,0.00282052]
[1760003187384,0.00203554,4336.2,4336.1,0.39272052]
[1760003187885,0.41133554,4336.2,4336.1,0.39272052]
[1760003188992,0.00203554,4336.2,4336.1,0.39272052]
[1760003189993,0.00203554,4336.2,4336.1,41.19272052]
[1760003192189,0.41705554,4336.2,4336.1,41.19272052]
[1760003193693,0.41705554,4336.2,4336.1,0.00282052]
[1760003193694,0.83935554,4336.2,4336.1,0.00282052]
[1760003194083,0.83935554,4336.2,4336.1,40.80282052]
[1760003194494,0.83935554,4336.2,4336.1,41.18882052]
[1760003194693,0.41705554,4336.2,4336.1,41.18882052]
[1760003195191,0.00203554,4336.2,4336.1,41.60385052]
[1760003195792,0.41705554,4336.2,4336.1,41.60385052]
[1760003195997,0.4223,4337.5,4336.4,0.415]
[1760003196198,0.4149,4337.5,4337.1,0.386]
[1760003196498,0.4149,4337.5,4337.0,0.16]
[1760003196499,0.4223,4338.2,4337.6,0.386]
[1760003196701,0.41488,4337.8,4337.6,0.386]
[1760003196886,0.41704768,4337.8,4337.7,0.231]
[1760003197091,0.41704768,4337.8,4337.7,0.617]
[1760003197395,0.41704768,4337.8,4337.7,0.386]
[1760003197396,0.83934768,4337.8,4337.7,0.386]
[1760003197598,0.83934768,4337.8,4337.7,41.186]
[1760003199203,0.41704768,4337.8,4337.7,41.186]
[1760003199410,0.00216768,4337.8,4337.7,46.186]
[1760003202308,0.00216768,4337.8,4337.7,41.186]
[1760003202803,0.00216768,4337.8,4337.7,41.417]
[1760003203008,0.00216768,4337.8,4337.7,41.186]
[1760003203303,0.00216768,4337.8,4337.7,41.417]
[1760003203901,1.03685,4339.2,4338.2,0.3839]
[1760003204104,0.41482,4338.4,4338.3,0.6072]
[1760003204405,1.03682,4339.3,4338.6,0.3762]
[1760003204605,0.41478,4338.8,4338.7,41.4072]
[1760003204905,0.41677796,4338.8,4338.7,41.4072]
[1760003206899,0.00199796,4338.8,4338.7,41.4072]
[1760003209505,0.00199796,4338.8,4338.7,41.82198]
[1760003209903,0.41468,4339.8,4339.7,0.5512]
[1760003210103,0.41468,4339.8,4339.7,0.9254]
[1760003210504,0.41468,4339.8,4339.7,0.5512]
[1760003210505,0.81968,4339.8,4339.7,0.5512]
[1760003210709,1.09528,4339.8,4339.7,0.5512]
[1760003210912,1.09728948,4339.8,4339.7,0.55307193]
[1760003211106,1.09728948,4339.8,4339.7,0.28797193]
[1760003211507,1.37008948,4339.8,4339.7,0.28797193]
[1760003211999,1.37008948,4339.8,4339.7,0.00187193]
[1760003212401,0.41477,4338.8,4338.7,41.1742]
[1760003212601,0.81977,4338.8,4338.7,40.8]
[1760003212808,0.41486,4337.9,4337.8,0.3742]
[1760003213312,0.41486,4337.9,4337.8,41.1742]
[1760003213515,0.41486,4337.9,4337.8,41.17592506]
[1760003216017,0.41486,4337.9,4337.8,41.40692506]
[1760003216614,0.81986,4337.9,4337.8,40.80172506]
[1760003218415,1.03724,4337.6,4336.8,0.3675]
[1760003218612,0.4102,4337.0,4336.9,0.231]
[1760003218819,0.4102,4337.0,4336.9,41.5686]
[1760003219119,0.5814,4337.0,4336.9,41.3376]
[1760003219508,0.5814,4337.0,4336.9,41.33974837]
[1760003221529,0.41494,4337.1,4336.9,41.33974837]
[1760003221716,0.82514,4337.1,4337.0,0.9051]
[1760003221923,1.38834,4337.1,4337.0,0.5376]
[1760003222223,1.38834,4337.1,4337.0,0.2771]
[1760003223715,1.10804,4337.1,4337.0,0.9051]
[1760003223916,1.10804,4337.1,4337.0,0.5376]
[1760003224518,0.41494,4337.1,4337.0,0.9051]
[1760003224822,0.82514,4337.1,4337.0,0.9051]
[1760003225216,1.10804,4337.1,4337.0,0.5376]
[1760003225413,1.55955,4337.0,4336.9,0.00214837]
[1760003226529,1.55955,4337.0,4336.9,0.27924837]
[1760003226916,0.41495,4337.0,4336.9,1.32220837]
[1760003227120,0.1563,4338.0,4337.4,0.5376]
[1760003227324,0.4149,4337.5,4337.4,0.9051]
[1760003227523,1.108,4337.5,4337.4,0.5376]
[1760003227727,0.8251,4337.5,4337.4,0.9051]
[1760003228128,1.108,4337.5,4337.4,0.5376]
[1760003228330,1.2792,4337.5,4337.4,0.5376]
[1760003229031,1.2792,4337.5,4337.4,41.3376]
[1760003229618,0.9963,4337.5,4337.4,41.3376]
[1760003229930,0.4149,4337.5,4337.4,41.7051]
[1760003230122,0.8251,4337.5,4337.4,41.7051]
[1760003230422,0.4149,4337.5,4337.4,41.7051]
[1760003230926,0.4102,4337.9,4337.4,41.7051]
[1760003231230,0.41486,4337.9,4337.8,0.5376]
[1760003231522,0.82506,4337.9,4337.8,0.5376]
[1760003232028,1.10796,4337.9,4337.8,0.5376]
[1760003232419,0.1563,4338.5,4337.8,0.5376]
[1760003232625,0.1563,4338.5,4337.6,0.3675]
[1760003232626,0.825,4338.5,4338.4,0.9051]
[1760003232922,0.41484,4338.1,4337.7,0.231]
[1760003233128,0.2829,4338.1,4338.0,0.5376]
[1760003233332,0.69774,4338.1,4338.0,0.5376]
[1760003233633,1.10794,4338.1,4338.0,0.5376]
[1760003235030,0.41484,4338.1,4338.0,0.9051]
[1760003235419,0.41484,4338.1,4338.0,1.0071]
[1760003235825,0.41484,4338.2,4338.1,0.9051]
[1760003236824,0.4102,4338.7,4338.2,0.3675]
[1760003237024,1.27905,4339.0,4338.9,0.5376]
[1760003237228,1.51005,4339.0,4338.9,0.5376]
[1760003238333,0.41475,4339.0,4338.9,0.9051]
[1760003239630,0.82495,4339.0,4338.9,0.9051]
[1760003241032,0.41475,4339.0,4338.9,0.9051]
[1760003242127,0.41478,4338.7,4338.6,0.9051]
[1760003242734,0.41478,4338.7,4338.6,41.7051]
[1760003243628,0.82492,4339.4,4339.3,0.5376]
[1760003243825,0.41472,4339.4,4339.3,0.9051]
[1760003244128,1.38812,4339.4,4339.3,0.5376]
[1760003244335,0.82497,4338.8,4338.7,0.9051]
[1760003244633,0.41477,4338.8,4338.7,0.9051]
[1760003245324,0.41473,4339.3,4339.2,0.9051]
[1760003247326,0.82493,4339.3,4339.2,0.9051]
[1760003247830,0.41473,4339.3,4339.2,0.9051]
[1760003249030,1.06743,4339.3,4339.2,0.5376]
[1760003249236,2.30448,4339.7,4338.8,0.5844]
[1760003249237,1.06746,4338.9,4338.8,0.5485]
[1760003250027,0.41476,4338.9,4338.8,0.9019]
[1760003250436,0.41476,4339.0,4338.9,0.6328]
[1760003250628,0.41476,4339.0,4338.6,40.8]
[1760003250629,0.6457,4339.6,4339.5,0.9019]
[1760003250823,1.0361,4339.6,4339.5,0.9019]
[1760003251030,1.2984,4339.6,4339.5,0.9019]
[1760003251535,1.0674,4339.6,4339.5,0.9019]
[1760003252224,1.0674,4339.6,4339.5,0.5485]
[1760003252830,0.4147,4339.6,4339.5,0.9019]
[1760003253425,0.00200948,4339.8,4339.6,0.3534]
[1760003253635,0.00200948,4339.8,4339.7,1.31659]
[1760003254128,0.00200948,4339.8,4339.7,42.11659]
[1760003255438,0.00200948,4339.8,4339.7,41.7019]
[1760003256643,0.41668948,4339.8,4339.7,41.7019]
[1760003258438,0.41668948,4339.8,4339.7,41.9329]
[1760003262835,0.80708948,4339.8,4339.7,41.3485]
[1760003263041,1.32448948,4339.8,4339.2,0.5844]
[1760003263240,1.06743,4339.3,4339.2,0.9019]
[1760003263441,1.32253,4339.3,4339.2,0.5485]
[1760003263640,0.80514,4339.1,4339.0,40.8]
[1760003264634,0.41474,4339.1,4339.0,41.1459]
[1760003265141,0.79274,4339.1,4339.0,41.1459]
[1760003266248,0.79274,4339.1,4339.0,40.8]
[1760003267443,0.79274,4339.1,4339.0,41.1459]
[1760003267848,0.41474,4339.1,4339.0,41.1459]
[1760003268148,0.79274,4339.1,4339.0,41.1459]
[1760003269343,0.41474,4339.1,4339.0,41.1459]
[1760003269546,0.1581,4339.5,4339.4,0.61]
[1760003269547,0.41471,4339.5,4339.4,0.61]
[1760003269751,0.41471,4339.5,4339.4,1.1042]
[1760003273154,0.00200948,4339.8,4339.7,0.41469]
[1760003273359,0.00200948,4339.8,4339.7,0.231]
[1760003273659,0.00200948,4339.8,4339.7,41.031]
[1760003274362,0.00200948,4339.8,4339.7,40.8]
[1760003274661,0.00200948,4339.8,4339.7,41.031]
[1760003274856,0.00200948,4339.8,4339.7,40.8]
[1760003275057,0.00200948,4339.8,4339.7,41.031]
[1760003275453,0.38000948,4339.8,4339.7,41.031]
[1760003275658,0.38000948,4339.8,4339.7,40.8]
[1760003275856,0.378,4339.3,4339.0,1.65419155]
[1760003276057,0.41476,4339.0,4338.8,1.88519155]
[1760003276257,0.41476,4339.0,4338.9,1.65419155]
[1760003276561,0.41476,4339.0,4338.9,42.45419155]
[1760003277551,0.79276,4339.0,4338.9,42.45419155]
[1760003278063,0.94606,4339.0,4338.9,40.8]
[1760003280059,0.56806,4339.0,4338.9,40.8]
[1760003280763,0.41476,4339.0,4338.9,42.45419155]
[1760003281460,0.82596,4339.0,4338.9,42.45419155]
[1760003282065,0.97836,4339.0,4338.9,42.45419155]
[1760003282765,0.97836,4339.0,4338.9,40.8]
[1760003282967,0.41476,4339.0,4338.9,40.8]
[1760003283764,0.82596,4339.0,4338.9,40.8]
[1760003283966,0.4112,4339.4,4338.9,42.45419155]
[1760003284169,1.09904,4339.1,4339.0,0.231]
[1760003284461,1.36554,4339.1,4339.0,0.231]
[1760003285264,0.41475,4339.0,4338.9,40.8]
[1760003285465,0.41475,4339.0,4337.3,1.03729]
[1760003285466,0.8403,4338.5,4338.4,1.65419155]
[1760003285666,1.09911,4338.4,4338.3,1.65419155]
[1760003285872,0.82602,4338.3,4338.2,1.65419155]
[1760003286059,0.82602,4338.3,4338.2,42.45419155]
[1760003286568,0.82602,4338.3,4338.2,42.68519155]
[1760003286968,0.41482,4338.3,4338.2,42.68519155]
[1760003287170,0.4112,4338.4,4338.2,42.68567746]
[1760003287670,0.4112,4338.7,4338.2,42.68567746]
[1760003287967,0.41478,4338.8,4338.3,1.65467746]
[1760003288164,0.4148,4338.5,4338.4,1.88567746]
[1760003288668,0.4148,4338.5,4338.4,0.231]
[1760003289174,0.41479,4338.6,4338.4,1.88567746]
[1760003289471,0.4148,4338.5,4338.4,1.88567746]
[1760003290274,0.41479,4338.6,4338.5,0.41479]
[1760003290469,0.4148,4338.5,4338.4,1.88567746]
[1760003291071,0.9784,4338.5,4338.4,1.88567746]
[1760003291365,0.82601,4338.4,4338.3,1.65467746]
[1760003291569,0.82601,4338.4,4338.3,0.231]
[1760003292766,0.82601,4338.4,4338.3,1.88567746]
[1760003292970,0.41481,4338.4,4338.3,1.88567746]
[1760003293171,1.09911,4338.4,4338.3,1.88567746]
[1760003293367,1.09911,4338.4,4338.3,1.65467746]
[1760003293575,1.09911,4338.4,4338.3,0.231]
[1760003293969,0.82601,4338.4,4338.3,0.231]
[1760003295878,0.41481,4338.4,4338.3,0.231]
[1760003296170,0.82601,4338.4,4338.3,0.231]
[1760003296677,0.82602,4338.3,4338.2,42.45467746]
[1760003296969,0.5396,4337.9,4337.8,1.65467746]
[1760003297168,0.5396,4337.9,4337.3,0.231]
[1760003297169,0.82611,4337.4,4337.3,0.231]
[1760003297373,1.09921,4337.4,4337.3,0.231]
[1760003297878,1.25165,4337.0,4336.9,0.23314837]
[1760003298171,1.25165,4337.0,4336.9,41.03314837]
[1760003298679,0.97855,4337.0,4336.9,41.03314837]
[1760003299073,0.5636,4337.0,4336.9,41.03314837]
[1760003299376,0.5636,4338.5,4337.8,0.41487]
[1760003299679,0.41483,4338.2,4337.8,0.231]
[1760003299971,0.41485,4338.0,4337.8,0.231]
[1760003300173,0.82605,4338.0,4337.8,0.231]
[1760003300376,0.4112,4337.9,4337.8,0.231]
[1760003300578,0.4149,4337.5,4337.4,1.65216504]
[1760003300779,0.4112,4337.3,4337.1,1.65216504]
[1760003300978,0.82612,4337.3,4337.2,0.231]
[1760003301481,0.41491,4337.4,4337.2,0.231]
[1760003301980,0.4112,4337.7,4337.2,0.64592]
[1760003302182,0.4149,4337.5,4337.2,0.64592]
[1760003302384,0.41491,4337.4,4337.2,0.64592]
[1760003302682,0.41493,4337.2,4337.1,1.65216504]
[1760003302877,0.97855,4337.0,4336.9,42.45431341]
[1760003303078,0.97855,4337.0,4336.9,40.80214837]
[1760003303279,0.97855,4337.0,4336.9,41.03314837]
[1760003304386,0.97855,4337.0,4336.9,40.80214837]
[1760003305389,0.4112,4337.8,4336.9,41.03314837]
[1760003305588,0.82614,4337.1,4336.9,41.03314837]
[1760003306093,0.41492,4337.3,4337.0,0.41494]
[1760003306295,0.41493,4337.2,4337.0,0.41494]
[1760003306689,0.41494,4337.1,4336.9,41.03314837]
[1760003306888,0.4112,4337.3,4337.0,0.41495]
[1760003307193,0.41492,4337.3,4337.1,0.64594]
[1760003307391,0.4112,4337.8,4337.1,0.231]
[1760003307590,0.82612,4337.3,4337.1,0.231]
[1760003307789,0.4112,4337.2,4337.1,0.231]
[1760003307988,0.5636,4337.0,4336.9,40.80214837]
[1760003308294,0.41494,4337.1,4336.9,41.03314837]
[1760003308791,0.41493,4337.2,4337.0,0.41494]
[1760003309095,0.41493,4337.2,4337.1,0.231]
[1760003310695,0.41492,4337.3,4337.1,0.64594]
[1760003310998,0.1524,4338.0,4337.2,0.41493]
[1760003310999,0.41491,4337.5,4337.2,0.41493]
[1760003311199,1.18955,4338.0,4337.3,0.64592]
[1760003311800,0.41491,4337.4,4337.3,0.231]
[1760003312097,0.4149,4337.5,4337.3,0.64592]
[1760003313201,0.41491,4337.4,4337.3,0.64592]
[1760003313394,0.3857,4337.9,4337.3,0.231]
[1760003313598,0.41484,4338.1,4337.5,1.65175408]
[1760003313795,1.03701,4338.6,4337.8,0.41487]
[1760003314101,0.41485,4338.1,4337.9,41.44586]
[1760003314289,0.41485,4338.1,4338.0,0.231]
[1760003314492,0.41483,4338.3,4338.0,0.231]
[1760003314693,0.3857,4338.7,4338.1,0.03191631]
[1760003314899,0.3857,4339.2,4338.2,0.231]
[1760003315102,0.41481,4338.5,4338.2,0.231]
[1760003315398,0.6468,4338.9,4338.2,0.231]
[1760003315797,0.38290369,4338.4,4338.2,0.231]
[1760003316896,0.38290369,4338.4,4338.2,0.64583]
[1760003317601,0.4148,4338.6,4338.3,0.41482]
[1760003317800,0.4148,4338.6,4338.4,0.231]
[1760003318002,0.3857,4339.3,4338.5,0.4148]
[1760003318204,0.41478,4338.8,4338.6,0.64579]
[1760003318398,0.41476,4339.0,4338.7,0.41478]
[1760003318595,0.41477,4338.9,4338.7,0.41478]
[1760003319008,0.41477,4338.9,4338.6,0.231]
[1760003319208,0.41477,4338.9,4338.7,0.41478]
[1760003319408,0.41474,4339.2,4338.9,0.41476]
[1760003319602,0.3857,4339.7,4339.0,41.44575]
[1760003319996,0.41473,4339.3,4339.0,41.44575]
[1760003320508,0.41474,4339.2,4339.0,41.44575]
[1760003320709,0.80044,4339.2,4339.0,41.031]
[1760003321706,0.41474,4339.2,4339.0,41.031]
[1760003321910,0.41474,4339.1,4339.0,41.031]
[1760003323114,0.41474,4339.2,4339.0,41.031]
[1760003323309,0.41474,4339.2,4339.0,41.44575]
[1760003323608,0.41474,4339.2,4339.0,41.21475]
[1760003323911,0.41474,4339.1,4339.0,40.8]
[1760003324108,0.41474,4339.1,4339.0,41.031]
[1760003324615,0.5405,4339.5,4339.0,41.031]
[1760003324616,0.41473,4339.3,4339.1,0.41474]
[1760003324813,0.00200948,4339.8,4339.3,0.41472]
[1760003325114,0.41471,4339.5,4339.4,0.231]
[1760003326007,0.4147,4339.6,4339.5,0.41471]
[1760003326215,0.4147,4339.6,4339.5,0.231]
[1760003327108,0.00200948,4339.8,4339.0,40.8]
[1760003327316,0.41474,4339.1,4339.0,40.8]
[1760003327612,0.41482,4338.3,4338.2,1.65160642]
[1760003327811,0.41481,4338.5,4338.2,0.64583]
[1760003328016,0.41481,4338.4,4338.3,40.8]
[1760003328917,0.41481,4338.4,4338.3,41.21482]
[1760003329117,0.41481,4338.4,4338.3,40.8]
[1760003329317,0.41481,4338.4,4338.3,41.21482]
[1760003329512,0.4148,4338.6,4338.4,0.41481]
[1760003329711,0.4148,4338.6,4338.5,0.231]
[1760003329912,0.41477,4338.9,4338.5,0.6458]
[1760003330114,0.41477,4338.8,4338.5,0.231]
[1760003330418,0.41477,4338.8,4338.6,40.8]
[1760003330621,0.1586,4339.0,4338.7,0.231]
[1760003330928,0.3896,4338.9,4338.7,0.231]
[1760003331914,0.41477,4338.8,4338.7,0.231]
[1760003332116,0.80437,4338.8,4338.7,0.231]
[1760003333419,0.41477,4338.8,4338.7,0.231]
[1760003333825,0.80437,4338.8,4338.7,0.231]
[1760003334721,0.41477,4338.8,4338.7,0.231]
[1760003336726,0.41471,4339.5,4338.7,0.231]
[1760003337023,0.41472,4339.4,4339.0,0.41475]
[1760003337235,0.3896,4339.9,4339.1,0.64574]
[1760003337421,0.41473,4339.3,4339.1,0.64574]
[1760003338230,0.41473,4339.3,4339.2,40.8]
[1760003339925,0.1509,4340.0,4339.7,0.41469]
[1760003340121,0.388,4341.3,4339.8,0.41467]
[1760003340326,1.03639,4341.1,4339.9,0.231]
[1760003340531,0.80264,4340.2,4340.0,41.031]
[1760003340825,0.388,4340.2,4340.0,41.031]
[1760003341025,0.388,4340.4,4340.0,41.03281883]
[1760003341224,0.00271514,4340.2,4340.0,41.44747883]
[1760003341824,0.00271514,4340.2,4340.0,41.03281883]
[1760003342130,0.41735514,4340.2,4340.0,41.03281883]
[1760003342324,0.41735514,4340.2,4340.0,42.83025624]
[1760003342526,0.1606,4341.0,4340.0,42.83025624]
[1760003342730,0.388,4341.9,4340.2,1.0366]
[1760003342932,0.41451,4341.6,4340.8,0.41458]
[1760003343122,0.388,4341.9,4340.9,0.64557]
[1760003343432,0.41454,4341.3,4340.9,0.231]
[1760003343635,0.41710107,4341.3,4340.9,0.231]
[1760003343928,0.41455,4341.2,4340.9,0.231]
[1760003344128,0.00256107,4341.3,4340.9,0.64557]
[1760003344324,0.41710107,4341.3,4340.9,0.64557]
[1760003344632,0.41455,4341.2,4340.9,0.64557]
[1760003345428,0.41456,4341.1,4340.9,0.231]
[1760003345633,0.41461,4340.6,4340.3,0.41463]
[1760003345830,0.41459,4340.8,4340.4,0.64562]